bitfinex/quotes_BTCUSD_20250218
["timestamp","ask_amount","ask_price","bid_price","bid_amount"]
[1739901064257,1.0371652,94420.0,94419.0,0.00038442]
[1739901064814,1.0381652,94420.0,94419.0,0.00038442]
[1739901065258,1.0371652,94420.0,94419.0,0.00038442]
[1739901066143,1.05376699,94420.0,94419.0,0.00038442]
[1739901066856,1.63786619,94420.0,94419.0,0.00038442]
[1739901067257,1.64086619,94420.0,94419.0,0.00038442]
[1739901067777,5.84186619,94420.0,94419.0,0.00038442]
[1739901068023,5.13336619,94420.0,94419.0,0.00038442]
[1739901068794,5.15686678,94420.0,94419.0,0.00038442]
[1739901069559,5.15086678,94420.0,94419.0,0.00038442]
[1739901069963,5.15386678,94420.0,94419.0,0.00038442]
[1739901070437,5.18451588,94420.0,94419.0,4.2e-07]
[1739901070642,1.74286678,94420.0,94419.0,4.2e-07]
[1739901071452,1.74286678,94420.0,94419.0,0.14190042]
[1739901071658,1.71936619,94420.0,94419.0,0.14190042]
[1739901071861,1.71936619,94420.0,94419.0,4.2e-07]
[1739901072514,1.71936619,94420.0,94419.0,4e-07]
[1739901072654,1.71336619,94420.0,94419.0,4e-07]
[1739901072861,2.0269644,94420.0,94419.0,4e-07]
[1739901073057,2.0209644,94420.0,94419.0,4e-07]
[1739901073501,2.0279644,94420.0,94419.0,4e-07]
[1739901074110,2.17345749,94420.0,94419.0,4e-07]
[1739901075695,2.16645749,94420.0,94419.0,4e-07]
[1739901075916,2.18306124,94420.0,94419.0,4e-07]
[1739901076470,2.19006124,94420.0,94419.0,4e-07]
[1739901078650,2.11456124,94420.0,94419.0,4e-07]
[1739901078832,1.8295871,94420.0,94419.0,4e-07]
[1739901079006,1.9884511,94420.0,94419.0,4e-07]
[1739901081004,1.84295801,94420.0,94419.0,4e-07]
[1739901082260,1.62974082,94420.0,94419.0,4e-07]
[1739901082866,1.61313707,94420.0,94419.0,4e-07]
[1739901085141,1.61330727,94420.0,94419.0,4e-07]
[1739901085897,1.62991085,94420.0,94419.0,4e-07]
[1739901086106,1.77540394,94420.0,94419.0,4e-07]
[1739901086526,1.19130474,94420.0,94419.0,4e-07]
[1739901086726,1.77538764,94420.0,94419.0,4e-07]
[1739901087101,0.99320474,94420.0,94419.0,4e-07]
[1739901087530,1.14320474,94420.0,94419.0,4e-07]
[1739901088651,0.79320474,94420.0,94419.0,4e-07]
[1739901088854,0.46900474,94420.0,94419.0,4e-07]
[1739901089056,0.46900474,94420.0,94419.0,0.0810004]
[1739901090553,0.61200474,94420.0,94419.0,0.0810004]
[1739901091013,0.61500474,94420.0,94419.0,0.0810004]
[1739901091608,0.46951165,94420.0,94419.0,0.09387044]
[1739901092029,0.17156418,94420.0,94419.0,0.0810004]
[1739901092226,0.1638246,94420.0,94419.0,0.0810004]
[1739901094814,0.1638246,94420.0,94419.0,0.06797423]
[1739901095521,0.0049606,94420.0,94419.0,0.08797423]
[1739901095726,0.0049606,94420.0,94419.0,0.08862133]
[1739901095929,0.0049606,94420.0,94419.0,0.42885346]
[1739901096135,0.0031702,94420.0,94419.0,0.42820636]
[1739901096341,0.0031702,94420.0,94419.0,0.44820636]
[1739901096757,0.0001702,94420.0,94419.0,1.32631641]
[1739901096971,0.17017964,94444.0,94443.0,0.0677]
[1739901097260,0.17017964,94444.0,94443.0,0.42207]
[1739901097461,0.17198688,94444.0,94443.0,0.42207]
[1739901097635,0.17198688,94444.0,94443.0,0.43951]
[1739901097845,0.17198688,94444.0,94443.0,0.51521]
[1739901098246,0.17198688,94444.0,94443.0,0.51621]
[1739901099057,0.17017964,94444.0,94443.0,0.51621]
[1739901099206,0.17198459,94444.0,94443.0,0.51621]
[1739901099614,0.17198459,94444.0,94443.0,0.51521]
[1739901100018,0.17198459,94444.0,94443.0,0.51721]
[1739901100848,0.17198459,94444.0,94443.0,0.676035]
[1739901101047,0.04437964,94444.0,94443.0,0.73083865]
[1739901101255,0.09428309,94449.0,94446.0,0.19626]
[1739901101452,0.09428309,94449.0,94446.0,0.40130922]
[1739901101659,0.09428309,94449.0,94446.0,0.40066365]
[1739901101854,0.09428309,94449.0,94448.0,0.196257]
[1739901101855,0.01652429,94449.0,94448.0,0.196257]
[1739901102088,0.01659156,94471.0,94469.0,0.11584]
[1739901102304,0.01659156,94471.0,94469.0,0.45266951]
[1739901102532,0.01659156,94471.0,94469.0,0.475024]
[1739901102871,0.0003406,94472.0,94469.0,0.474024]
[1739901103100,0.00047321,94470.0,94469.0,0.474024]
[1739901103875,0.00047321,94470.0,94458.0,0.02]
[1739901104079,0.15,94456.0,94451.0,0.01644]
[1739901104273,0.06972,94455.0,94451.0,0.01644]
[1739901104477,0.15,94453.0,94451.0,0.01644]
[1739901104825,0.15,94453.0,94452.0,0.058774]
[1739901105033,0.15,94453.0,94452.0,0.081774]
[1739901105343,0.15,94462.0,94458.0,0.01644]
[1739901105544,0.228555,94461.0,94458.0,0.01644]
[1739901105752,0.15,94459.0,94458.0,0.01644]
[1739901106011,0.06968,94459.0,94458.0,0.01644]
[1739901106213,0.01659194,94461.0,94458.0,0.0223174]
[1739901106601,0.01659194,94461.0,94458.0,0.0263174]
[1739901106798,0.01649901,94461.0,94458.0,0.0263174]
[1739901107004,0.01649901,94461.0,94458.0,0.0223174]
[1739901107204,0.16649901,94461.0,94459.0,0.00852974]
[1739901107757,0.01649901,94461.0,94460.0,0.01708597]
[1739901107957,0.01649901,94461.0,94460.0,0.06008544]
[1739901108162,0.01649901,94461.0,94460.0,0.0680347]
[1739901108623,0.01649901,94461.0,94460.0,0.3926347]
[1739901108794,0.01649901,94461.0,94460.0,0.39198926]
[1739901109002,0.00047321,94470.0,94469.0,0.03944]
[1739901109202,0.00047321,94470.0,94469.0,0.46832925]
[1739901109403,0.00047321,94470.0,94469.0,0.467684]
[1739901109768,0.00047321,94470.0,94469.0,0.57018765]
[1739901110209,0.00047321,94470.0,94469.0,0.57118765]
[1739901110619,0.00047321,94470.0,94469.0,1.11588765]
[1739901110768,0.00147321,94470.0,94469.0,1.12188765]
[1739901111390,0.00147321,94470.0,94469.0,1.27188765]
[1739901111948,0.00047321,94470.0,94469.0,1.26588765]
[1739901112410,0.00147321,94470.0,94469.0,1.27288765]
[1739901112616,0.00047321,94470.0,94469.0,1.11588765]
[1739901113024,0.00047321,94470.0,94469.0,1.12288765]
[1739901113716,0.00047321,94470.0,94469.0,1.11588765]
[1739901114242,0.00047321,94470.0,94469.0,1.12288765]
[1739901115601,0.00047321,94470.0,94469.0,1.11588765]
[1739901115776,0.00147321,94470.0,94469.0,1.12288765]
[1739901118494,0.00047321,94470.0,94469.0,1.11588765]
[1739901118696,0.00147321,94470.0,94469.0,1.12288765]
[1739901118897,0.00147321,94470.0,94469.0,1.10288765]
[1739901119102,0.00047321,94470.0,94469.0,1.01518765]
[1739901119518,0.00147321,94470.0,94469.0,1.18096965]
[1739901119727,0.00047321,94470.0,94469.0,1.19696965]
[1739901120182,0.00147321,94470.0,94469.0,1.20396965]
[1739901120383,0.00147321,94470.0,94469.0,1.19696965]
[1739901121170,0.00147321,94470.0,94469.0,1.27806965]
[1739901121428,0.00147321,94470.0,94469.0,1.38996965]
[1739901121638,0.00247321,94470.0,94469.0,1.39696965]
[1739901122064,0.00147321,94470.0,94469.0,1.38996965]
[1739901122275,0.00147321,94470.0,94469.0,1.39696965]
[1739901122276,0.00247321,94470.0,94469.0,1.39696965]
[1739901122510,0.15,94513.0,94511.0,0.01644]
[1739901122679,0.07116,94512.0,94505.0,0.01644]
[1739901123009,0.15,94509.0,94505.0,0.01544]
[1739901123143,0.158721,94505.0,94503.0,0.3246]
[1739901123353,0.308721,94505.0,94504.0,0.035004]
[1739901123547,0.308721,94505.0,94503.0,0.3246]
[1739901123959,0.1962,94504.0,94503.0,0.3246]
[1739901124157,0.744613,94504.0,94503.0,0.3246]
[1739901124385,0.673573,94504.0,94503.0,0.3246]
[1739901124588,0.15878,94470.0,94469.0,0.007]
[1739901124751,0.158809,94453.0,94452.0,0.0003404]
[1739901124941,0.205409,94453.0,94452.0,0.0003404]
[1739901125235,0.6830391,94453.0,94452.0,0.0003404]
[1739901125842,0.69963238,94453.0,94452.0,0.00047261]
[1739901126482,0.54182338,94453.0,94452.0,0.00747261]
[1739901126714,0.06319328,94453.0,94452.0,0.02047261]
[1739901128028,0.06319328,94453.0,94452.0,0.02447261]
[1739901128238,0.06319328,94453.0,94452.0,0.00447261]
[1739901128451,0.06319328,94453.0,94452.0,0.00047261]
[1739901128877,0.06319328,94453.0,94452.0,0.00447261]
[1739901128908,0.21319328,94453.0,94452.0,0.00447261]
[1739901130070,0.06319328,94453.0,94452.0,0.00447261]
[1739901130285,0.01659328,94453.0,94452.0,0.00447261]
[1739901130497,0.01659328,94453.0,94452.0,0.00511865]
[1739901130708,0.01659328,94453.0,94452.0,0.06355865]
[1739901130920,0.01659328,94453.0,94452.0,0.06991452]
[1739901131336,0.01659328,94453.0,94452.0,0.34451452]
[1739901131545,0.01659328,94453.0,94452.0,0.34386848]
[1739901131753,0.0812,94483.0,94466.0,0.01544]
[1739901131967,0.0165911,94470.0,94467.0,0.02364555]
[1739901132409,0.00217238,94469.0,94468.0,0.06434856]
[1739901132616,0.00217238,94469.0,94468.0,0.06499376]
[1739901132836,0.0464,94484.0,94478.0,0.02]
[1739901133043,0.158765,94479.0,94478.0,0.02]
[1739901133256,0.158762,94481.0,94478.0,0.02]
[1739901133459,0.211623,94508.0,94480.0,0.01544]
[1739901133460,0.00218538,94483.0,94480.0,0.01544]
[1739901133670,0.158762,94481.0,94480.0,0.03908519]
[1739901133876,0.308765,94479.0,94478.0,0.2746]
[1739901135088,0.308765,94479.0,94478.0,0.2806]
[1739901135755,0.7862658,94479.0,94478.0,0.006]
[1739901136576,0.8357658,94479.0,94478.0,0.006]
[1739901136787,0.9165658,94479.0,94478.0,0.006]
[1739901136998,0.93315629,94479.0,94478.0,0.006]
[1739901137825,0.93315629,94479.0,94467.0,0.2746]
[1739901137826,0.308783,94468.0,94467.0,0.2746]
[1739901138029,0.308809,94453.0,94452.0,0.00047261]
[1739901138650,0.358509,94453.0,94452.0,0.03152387]
[1739901138860,0.358509,94453.0,94452.0,0.00047261]
[1739901139066,0.8361371,94453.0,94452.0,0.00047261]
[1739901139893,0.93333252,94453.0,94452.0,6.1e-07]
[1739901140106,3.66513252,94453.0,94452.0,0.00700061]
[1739901140312,4.10258062,94453.0,94452.0,6.1e-07]
[1739901140512,1.72178062,94453.0,94452.0,6.1e-07]
[1739901140926,1.72178062,94453.0,94420.0,0.00064664]
[1739901140927,0.308862,94421.0,94420.0,0.00064664]
[1739901141142,0.308864,94420.0,94419.0,0.0003404]
[1739901141709,0.32546297,94420.0,94419.0,0.0003404]
[1739901142307,0.32559544,94420.0,94419.0,0.0003404]
[1739901142772,0.32659544,94420.0,94419.0,0.0063404]
[1739901142943,0.30999647,94420.0,94419.0,0.0063404]
[1739901145842,0.32659568,94420.0,94419.0,0.0063404]
[1739901146049,0.80438688,94420.0,94419.0,0.0063404]
[1739901146860,0.308893,94403.0,94402.0,0.27342385]
[1739901147800,0.32549501,94403.0,94402.0,0.27342385]
[1739901148429,0.32864914,94403.0,94402.0,0.27342385]
[1739901148713,0.308908,94394.0,94393.0,0.27342385]
[1739901149157,0.30892,94387.0,94386.0,0.01544]
[1739901149364,0.37916,94387.0,94386.0,0.01544]
[1739901149567,0.38130841,94387.0,94386.0,0.01544]
[1739901149779,0.31106841,94387.0,94386.0,0.03844]
[1739901149997,0.32767198,94387.0,94386.0,0.03844]
[1739901150441,0.32780438,94387.0,94386.0,0.03844]
[1739901151603,0.32880438,94387.0,94386.0,0.03844]
[1739901152004,0.16988438,94387.0,94386.0,0.04493203]
[1739901152216,0.16988438,94387.0,94386.0,0.03844]
[1739901152502,0.32880438,94387.0,94386.0,0.03844]
[1739901152877,0.16988438,94387.0,94386.0,0.03844]
[1739901153105,0.16988438,94387.0,94386.0,0.31186385]
[1739901153420,0.32880438,94387.0,94386.0,0.31186385]
[1739901154494,0.32880438,94387.0,94386.0,0.023]
[1739901154693,0.158937,94377.0,94376.0,0.0156103]
[1739901155139,0.16071633,94377.0,94376.0,0.0156103]
[1739901156001,0.16071633,94377.0,94376.0,0.0386103]
[1739901156961,0.31071633,94377.0,94376.0,0.0231703]
[1739901157175,0.31071633,94377.0,94376.0,0.0001703]
[1739901157606,0.78873683,94377.0,94376.0,0.0001703]
[1739901157995,0.80534359,94377.0,94376.0,0.0001703]
[1739901158392,5.14084359,94377.0,94376.0,0.0001703]
[1739901158974,5.14184359,94377.0,94376.0,0.0001703]
[1739901159241,5.14084359,94377.0,94376.0,0.0001703]
[1739901159485,1.52198599,94377.0,94376.0,3e-07]
[1739901160271,1.51742599,94377.0,94376.0,3e-07]
[1739901161038,0.93304359,94377.0,94376.0,3e-07]
[1739901162158,0.91643683,94377.0,94376.0,3e-07]
[1739901163609,0.89683683,94377.0,94376.0,3e-07]
[1739901166212,0.81863683,94377.0,94376.0,3e-07]
[1739901166797,0.83524559,94377.0,94376.0,3e-07]
[1739901167196,0.68524559,94377.0,94376.0,3e-07]
[1739901167425,0.63574559,94377.0,94376.0,3e-07]
[1739901167644,0.78574559,94377.0,94376.0,3e-07]
[1739901168023,0.63574559,94377.0,94376.0,3e-07]
[1739901168223,0.15772509,94377.0,94376.0,3e-07]
[1739901168630,0.01838809,94377.0,94376.0,0.0384403]
[1739901168929,0.01838809,94377.0,94376.0,0.04668319]
[1739901169149,0.01660876,94377.0,94376.0,0.04733124]
[1739901169375,0.01660876,94377.0,94376.0,0.04668319]
[1739901169548,0.01837951,94377.0,94376.0,0.04668319]
[1739901169755,0.01660876,94377.0,94376.0,0.04668319]
[1739901169955,0.01838062,94377.0,94376.0,0.04668319]
[1739901170386,0.17731762,94377.0,94376.0,0.04668319]
[1739901171626,0.17831762,94377.0,94376.0,0.0384403]
[1739901171829,0.17731762,94377.0,94376.0,0.0384403]
[1739901172033,0.17831762,94377.0,94376.0,0.0384403]
[1739901172592,0.01938062,94377.0,94376.0,0.0384403]
[1739901173007,0.158937,94377.0,94376.0,0.0384403]
[1739901173180,0.001,94377.0,94376.0,0.0384403]
[1739901173341,0.23098632,94377.0,94376.0,0.0384403]
[1739901173541,0.00312932,94377.0,94376.0,0.06096893]
[1739901174148,0.16206632,94377.0,94376.0,0.06096893]
[1739901174430,0.16106632,94377.0,94376.0,0.06096893]
[1739901174675,0.16206632,94377.0,94376.0,0.17286893]
[1739901174888,0.16206632,94377.0,94376.0,0.06096893]
[1739901175091,0.16206632,94377.0,94376.0,0.0384403]
[1739901175816,0.16106632,94377.0,94376.0,0.0230003]
[1739901176039,0.17867192,94377.0,94376.0,0.0230003]
[1739901176420,0.17867192,94377.0,94376.0,0.0384403]
[1739901177381,0.17767192,94377.0,94376.0,0.0384403]
[1739901177609,0.17767192,94377.0,94376.0,0.04431835]
[1739901177815,0.17867192,94377.0,94376.0,0.0384403]
[1739901178432,0.32867192,94377.0,94376.0,3e-07]
[1739901178632,0.80568772,94377.0,94376.0,3e-07]
[1739901178812,0.80668772,94377.0,94376.0,3e-07]
[1739901179322,0.80568772,94377.0,94376.0,3e-07]
[1739901179523,0.85428772,94377.0,94376.0,3e-07]
[1739901179687,0.85445802,94377.0,94376.0,3e-07]
[1739901180793,0.85345802,94377.0,94376.0,3e-07]
[1739901181504,0.85445802,94377.0,94376.0,3e-07]
[1739901182282,0.83785242,94377.0,94376.0,3e-07]
[1739901182936,0.52890755,94377.0,94376.0,3e-07]
[1739901183186,0.68784455,94377.0,94376.0,3e-07]
[1739901185054,0.68784455,94377.0,94374.0,0.0003402]
[1739901185055,0.5135,94375.0,94374.0,5e-07]
[1739901185261,0.5956,94375.0,94374.0,5e-07]
[1739901185549,0.59761411,94375.0,94374.0,5e-07]
[1739901186840,0.41422352,94375.0,94374.0,5e-07]
[1739901188171,0.40966352,94375.0,94374.0,5e-07]
[1739901191149,0.99858922,94375.0,94374.0,5e-07]
[1739901192902,0.40966352,94375.0,94374.0,5e-07]
[1739901193131,0.39305411,94375.0,94374.0,5e-07]
[1739901193337,0.31095411,94375.0,94374.0,5e-07]
[1739901195955,0.16095411,94375.0,94374.0,5e-07]
[1739901198788,0.65558893,94375.0,94374.0,5e-07]
[1739901199575,0.17756253,94375.0,94374.0,5e-07]
[1739901200372,0.32756253,94375.0,94374.0,5e-07]
[1739901202058,0.17756253,94375.0,94374.0,5e-07]
[1739901202257,0.17773283,94375.0,94374.0,5e-07]
[1739901202460,0.16112441,94375.0,94374.0,5e-07]
[1739901202679,0.16212441,94375.0,94374.0,0.0010005]
[1739901202998,0.16212441,94375.0,94374.0,0.0093397]
[1739901203452,0.16212441,94375.0,94374.0,0.0010005]
[1739901204071,0.16112441,94375.0,94374.0,5e-07]
[1739901204512,0.16212441,94375.0,94374.0,0.0050005]
[1739901205195,0.79014801,94375.0,94374.0,0.0050005]
[1739901205612,0.78914801,94375.0,94374.0,5e-07]
[1739901206037,0.79014801,94375.0,94374.0,0.0010005]
[1739901206667,0.31212441,94375.0,94374.0,5e-07]
[1739901206874,0.31112441,94375.0,94374.0,5e-07]
[1739901207065,0.31112441,94375.0,94374.0,0.0010005]
[1739901207272,0.32773203,94375.0,94374.0,5e-07]
[1739901207695,0.32773203,94375.0,94374.0,0.0010005]
[1739901207989,0.17773203,94375.0,94374.0,0.0010005]
[1739901208283,0.17773203,94375.0,94374.0,0.0152097]
[1739901208847,0.17773203,94375.0,94374.0,5e-07]
[1739901209047,0.01879203,94375.0,94374.0,0.0240005]
[1739901209493,0.01879203,94375.0,94374.0,0.0230005]
[1739901209670,0.01777792,94375.0,94374.0,0.0240005]
[1739901209869,0.01777792,94375.0,94374.0,0.0230005]
[1739901210083,0.01677792,94375.0,94374.0,0.05231455]
[1739901210285,0.17671792,94375.0,94374.0,0.03787455]
[1739901210485,0.01979504,94375.0,94374.0,0.07231455]
[1739901210711,0.0011703,94375.0,94374.0,0.33440802]
[1739901210947,0.0011703,94375.0,94374.0,0.4106602]
[1739901211967,0.0011703,94375.0,94374.0,0.4136602]
[1739901212167,0.0011703,94375.0,94374.0,0.4106602]
[1739901212168,0.0001703,94375.0,94374.0,0.4106602]
[1739901212548,0.0011703,94375.0,94374.0,0.4630602]
[1739901212748,0.0001703,94377.0,94376.0,0.444278]
[1739901212929,0.0001703,94377.0,94376.0,0.6492853]
[1739901213127,0.0001703,94377.0,94376.0,0.6482853]
[1739901213547,0.0001703,94377.0,94376.0,0.7601853]
[1739901213942,0.0001324,94387.0,94386.0,0.296161]
[1739901214145,0.0001324,94387.0,94386.0,0.57655758]
[1739901214349,0.0001324,94387.0,94386.0,0.72655758]
[1739901214558,0.09338099,94413.0,94401.0,0.193336]
[1739901214766,0.09338099,94413.0,94401.0,1.26738691]
[1739901214971,0.09338099,94413.0,94401.0,1.31223965]
[1739901215195,0.09338099,94413.0,94401.0,1.4147433]
[1739901215456,0.211792,94432.0,94401.0,1.4147433]
[1739901215661,0.211797,94430.0,94401.0,1.4147433]
[1739901215871,0.211797,94430.0,94401.0,1.4217433]
[1739901216044,0.211768,94443.0,94401.0,1.4147433]
[1739901216447,0.15,94434.0,94401.0,1.4217433]
[1739901216783,0.158864,94421.0,94401.0,1.4147433]
[1739901216987,0.15,94434.0,94401.0,1.4217433]
[1739901217155,0.158863,94421.0,94401.0,1.4217433]
[1739901217337,0.211794,94432.0,94401.0,1.4217433]
[1739901217538,0.158859,94424.0,94401.0,1.4217433]
[1739901217723,0.211816,94422.0,94401.0,1.4017433]
[1739901217919,0.21181,94425.0,94401.0,1.4217433]
[1739901218144,0.211812,94424.0,94401.0,1.4017433]
[1739901218345,0.211841,94411.0,94401.0,1.1167473]
[1739901218614,0.158879,94412.0,94401.0,1.1167473]
[1739901218792,0.158876,94414.0,94401.0,1.1397473]
[1739901219003,0.211826,94418.0,94401.0,1.1397473]
[1739901219169,0.211834,94414.0,94401.0,1.1327473]
[1739901219715,0.211834,94414.0,94401.0,1.1397473]
[1739901219916,0.158878,94412.0,94401.0,1.1327473]
[1739901220071,0.158876,94413.0,94401.0,1.1327473]
[1739901220275,0.01659877,94421.0,94401.0,1.1397473]
[1739901220276,0.211832,94415.0,94401.0,1.1397473]
[1739901220477,0.211825,94418.0,94401.0,1.1397473]
[1739901220680,0.158885,94408.0,94401.0,1.1397473]
[1739901220886,0.158883,94409.0,94401.0,1.1197473]
[1739901221084,0.21182,94420.0,94401.0,0.34604]
[1739901221085,0.211848,94408.0,94401.0,0.34604]
[1739901221411,0.00221245,94402.0,94401.0,0.34604]
[1739901221605,0.0001703,94402.0,94401.0,0.35904]
[1739901221782,0.00221245,94402.0,94401.0,0.38904]
[1739901221982,0.00321245,94402.0,94401.0,0.38904]
[1739901222166,0.00321245,94402.0,94401.0,0.38204]
[1739901222366,0.0021703,94402.0,94401.0,0.38904]
[1739901222571,0.00420472,94402.0,94401.0,0.38904]
[1739901222780,0.0021703,94402.0,94401.0,0.36904]
[1739901223357,0.00420646,94402.0,94401.0,0.482514]
[1739901223726,0.1610643,94402.0,94401.0,0.3546]
[1739901223936,0.1610643,94402.0,94401.0,0.3316]
[1739901224109,0.16309604,94402.0,94401.0,0.3316]
[1739901224585,0.16109604,94402.0,94401.0,0.3246]
[1739901224990,0.16209604,94402.0,94401.0,0.3546]
[1739901225629,0.15209604,94402.0,94401.0,0.3546]
[1739901227796,0.15209604,94402.0,94401.0,0.36950338]
[1739901228804,0.15209604,94402.0,94401.0,0.3546]
[1739901230692,0.15209604,94402.0,94401.0,0.335]
[1739901236057,0.14709604,94402.0,94401.0,0.335]
[1739901237119,0.00303174,94402.0,94401.0,0.3353404]
[1739901237468,0.1600642,94402.0,94401.0,0.3353404]
[1739901237646,0.1600642,94402.0,94401.0,0.42488844]
[1739901237841,0.16232972,94402.0,94401.0,0.42488844]
[1739901238416,0.00343572,94402.0,94401.0,0.42488844]
[1739901238842,0.0011702,94402.0,94401.0,0.42488844]
[1739901239035,0.00343598,94402.0,94401.0,0.42488844]
[1739901240145,0.308893,94403.0,94402.0,0.023]
[1739901240381,0.308893,94403.0,94402.0,0.06693284]
[1739901241145,0.15,94403.0,94402.0,0.06693284]
[1739901241289,0.308893,94403.0,94402.0,0.06693284]
[1739901241485,0.151,94403.0,94402.0,0.07393284]
[1739901242183,0.309893,94403.0,94402.0,0.07393284]
[1739901242356,0.309893,94403.0,94402.0,0.37893284]
[1739901243184,0.309893,94403.0,94402.0,0.335]
[1739901244772,0.151,94403.0,94402.0,0.335]
[1739901244968,0.377453,94403.0,94402.0,0.335]
[1739901245169,0.32649332,94403.0,94402.0,0.335]
[1739901245371,0.01760032,94403.0,94402.0,0.335]
[1739901245565,0.08496032,94403.0,94402.0,0.41040034]
[1739901245995,0.08710151,94403.0,94402.0,0.41040034]
[1739901246195,0.17863451,94403.0,94402.0,0.41040034]
[1739901246369,0.01974151,94403.0,94402.0,0.41040034]
[1739901246589,0.17649332,94403.0,94402.0,0.41040034]
[1739901246915,0.01974203,94403.0,94402.0,0.41040034]
[1739901247271,0.01760032,94403.0,94402.0,0.70623799]
[1739901248309,0.01760032,94403.0,94402.0,1.25193799]
[1739901248692,0.01760032,94403.0,94402.0,1.25227839]
[1739901249121,0.01760032,94403.0,94402.0,1.44227839]
[1739901249363,0.001,94403.0,94402.0,1.44227839]
[1739901250301,0.01659784,94418.0,94417.0,0.05744]
[1739901250561,0.01671964,94418.0,94417.0,0.32455665]
[1739901251630,0.01671964,94418.0,94417.0,0.16568765]
[1739901251844,0.01671964,94418.0,94417.0,0.17268765]
[1739901252114,0.0001218,94418.0,94417.0,0.17268765]
[1739901252611,0.0001218,94418.0,94417.0,0.16694365]
[1739901253340,0.0001218,94418.0,94417.0,0.15994365]
[1739901253797,0.0001218,94418.0,94417.0,0.16759061]
[1739901253918,0.0001218,94418.0,94417.0,0.16059061]
[1739901254122,0.0001218,94418.0,94417.0,1.01064365]
[1739901254325,0.0001218,94418.0,94417.0,1.2790163]
[1739901254582,0.0001218,94418.0,94417.0,1.1201473]
[1739901255164,0.0001218,94418.0,94417.0,1.2720163]
[1739901255555,0.0001218,94418.0,94417.0,1.2790163]
[1739901256311,0.0001218,94418.0,94417.0,1.1201473]
[1739901256696,0.01671753,94418.0,94417.0,1.1131473]
[1739901256968,0.01671753,94418.0,94417.0,1.1201473]
[1739901257145,0.01671753,94418.0,94417.0,1.1131473]
[1739901257512,0.01671753,94418.0,94417.0,1.2790163]
[1739901257730,0.01671753,94418.0,94417.0,1.2720163]
[1739901257954,0.01671753,94418.0,94417.0,1.2790163]
[1739901258312,0.01671753,94418.0,94417.0,1.1131473]
[1739901258534,0.01671753,94418.0,94417.0,1.1201473]
[1739901259302,0.01671753,94418.0,94417.0,1.3908163]
[1739901259703,0.01671753,94418.0,94417.0,1.3838163]
[1739901259895,0.01671753,94418.0,94417.0,1.2249473]
[1739901260101,0.01671753,94418.0,94417.0,1.2319473]
[1739901260299,0.01671753,94418.0,94417.0,1.2249473]
[1739901260760,0.01671753,94418.0,94417.0,1.3908163]
[1739901261686,0.01688773,94418.0,94417.0,1.2249473]
[1739901261891,0.01688773,94418.0,94417.0,1.2319473]
[1739901262881,0.000292,94418.0,94417.0,1.2319473]
[1739901263091,0.000292,94418.0,94417.0,1.3838163]
[1739901263290,0.000292,94418.0,94417.0,1.3908163]
[1739901263814,0.000292,94418.0,94417.0,1.3838163]
[1739901264062,0.000292,94418.0,94417.0,1.3908163]
[1739901264287,0.000292,94418.0,94417.0,1.3838163]
[1739901264494,0.000292,94418.0,94417.0,1.4673163]
[1739901264701,0.000292,94418.0,94417.0,1.6173163]
[1739901264874,0.000292,94418.0,94417.0,1.6103163]
[1739901265080,0.000292,94418.0,94417.0,1.6173163]
[1739901266347,0.000292,94418.0,94417.0,1.6103163]
[1739901266553,0.000292,94418.0,94417.0,1.5903163]
[1739901266760,0.000292,94418.0,94417.0,1.18294365]
[1739901266962,0.000292,94418.0,94417.0,0.99464365]
[1739901267170,0.000292,94418.0,94417.0,0.97464365]
[1739901267372,0.01688673,94418.0,94417.0,1.1545751]
[1739901267548,0.01688673,94418.0,94417.0,0.9757061]
[1739901267800,0.01688673,94418.0,94417.0,0.9827061]
[1739901268005,0.01688673,94418.0,94417.0,1.07820975]
[1739901268394,0.01688673,94418.0,94417.0,1.08520975]
[1739901268722,0.01688673,94418.0,94417.0,1.10820975]
[1739901269097,0.211795,94431.0,94420.0,0.01444]
[1739901269256,0.158854,94426.0,94421.0,0.43050365]
[1739901269453,0.00203398,94430.0,94421.0,0.43050365]
[1739901269658,0.00203153,94425.0,94421.0,0.52734618]
[1739901269877,0.158854,94427.0,94421.0,0.52734618]
[1739901270082,0.01659666,94438.0,94421.0,0.52734618]
[1739901270281,0.00203251,94426.0,94421.0,0.52734618]
[1739901270486,0.01659666,94438.0,94421.0,0.43184253]
[1739901270641,0.158861,94422.0,94421.0,0.305]
[1739901271052,0.16089548,94422.0,94421.0,0.312]
[1739901271308,0.16089548,94422.0,94421.0,0.305]
[1739901271911,0.16089548,94422.0,94421.0,0.328]
[1739901272769,0.17749278,94422.0,94421.0,0.41537]
[1739901272969,0.16089548,94422.0,94421.0,0.42237]
[1739901273199,0.16089548,94422.0,94421.0,0.41537]
[1739901273522,0.16089548,94422.0,94421.0,0.42237]
[1739901274969,0.16106568,94422.0,94421.0,0.42237]
[1739901275341,0.16106568,94422.0,94421.0,0.335]
[1739901275876,0.32766304,94422.0,94421.0,0.335]
[1739901276285,0.37266304,94422.0,94421.0,0.335]
[1739901277424,0.37266304,94422.0,94421.0,0.312]
[1739901277555,0.37266304,94422.0,94421.0,0.335]
[1739901277758,0.37266304,94422.0,94421.0,0.3685]
[1739901280023,0.06380204,94422.0,94421.0,0.3685]
[1739901280238,0.01676756,94422.0,94421.0,0.3685]
[1739901280405,0.01676756,94422.0,94421.0,0.48544365]
[1739901280614,0.01676756,94422.0,94421.0,0.47100365]
[1739901280820,0.01676756,94422.0,94421.0,1.01670365]
[1739901281021,0.01676756,94422.0,94421.0,0.8807]
[1739901281022,0.17765851,94422.0,94421.0,0.8807]
[1739901283016,0.16106115,94422.0,94421.0,0.8807]
[1739901284222,0.00220015,94422.0,94421.0,0.8807]
[1739901284427,0.16106115,94422.0,94421.0,0.8807]
[1739901284832,0.00220015,94422.0,94421.0,0.8807]
[1739901285640,0.00220015,94422.0,94421.0,0.91242474]
[1739901286617,0.0001702,94422.0,94421.0,0.91242474]
[1739901286824,0.0001702,94422.0,94421.0,0.36672474]
[1739901287152,0.00219869,94422.0,94421.0,0.52592694]
[1739901287342,0.0001702,94422.0,94421.0,0.36706494]
[1739901287952,0.00219722,94422.0,94421.0,0.36706494]
[1739901289000,0.0001702,94422.0,94421.0,0.36706494]
[1739901289622,0.00220016,94422.0,94421.0,0.36706494]
[1739901289830,0.0001702,94422.0,94421.0,0.3353402]
[1739901290034,0.00219967,94422.0,94421.0,0.3353402]
[1739901291322,0.0001702,94422.0,94421.0,0.3353402]
[1739901292146,0.0001702,94422.0,94421.0,0.4942022]
[1739901292348,0.0001702,94422.0,94421.0,0.43784385]
[1739901292556,0.0001701,94429.0,94427.0,0.02]